bitfinex-derivatives/quotes_ETHF0:USTF0_20250323
["timestamp","ask_amount","ask_price","bid_price","bid_amount"]
[1742733165201,2.30081,2011.8,2011.7,3.06246]
[1742733166201,1.3065,2011.8,2011.7,3.06246]
[1742733166797,0.6488,2012.0,2011.7,2.0681]
[1742733167112,3.2078,2012.1,2012.0,0.99421]
[1742733167599,4.4949,2012.1,2012.0,0.99421]
[1742733167998,1.2871,2012.1,2012.0,0.99421]
[1742733168298,0.00745471,2012.3,2012.2,0.99411]
[1742733168499,1.40485471,2012.3,2012.2,0.99411]
[1742733168703,1.40485471,2012.3,2012.2,2.32261]
[1742733170795,1.40485471,2012.3,2012.1,4.18013]
[1742733170998,0.99411,2012.2,2012.1,4.18013]
[1742733171395,0.99411,2012.2,2012.1,4.18016]
[1742733171795,0.99411,2012.2,2012.1,3.186]
[1742733172906,0.99411,2012.2,2012.1,0.99416]
[1742733174805,0.99411,2012.2,2012.0,2.32267]
[1742733174994,1.2891,2012.1,2012.0,2.32267]
[1742733175810,2.28326,2012.1,2012.0,2.32267]
[1742733178105,1.2891,2012.1,2012.0,2.32267]
[1742733178303,2.28326,2012.1,2012.0,2.32267]
[1742733178896,2.28326,2012.1,2012.0,1.3285]
[1742733179415,2.28326,2012.1,2012.0,2.32271]
[1742733180016,2.28326,2012.1,2012.0,1.3285]
[1742733180202,0.99421,2012.0,2011.9,44.0078]
[1742733180397,0.99421,2012.0,2011.9,40.8]
[1742733180398,2.31091,2012.0,2011.9,40.8]
[1742733180607,2.95501,2012.0,2011.9,41.79426]
[1742733180804,2.95501,2012.0,2011.9,43.06346]
[1742733183106,1.9608,2012.0,2011.9,43.06346]
[1742733184905,2.95501,2012.0,2011.9,42.0692]
[1742733185208,0.99431,2011.8,2011.7,0.99432]
[1742733185412,0.99431,2011.8,2011.7,2.31152]
[1742733185615,0.99431,2011.8,2011.7,43.11152]
[1742733185803,0.99431,2011.8,2011.7,42.1172]
[1742733186010,0.99431,2011.8,2011.7,1.3172]
[1742733190441,0.99436,2011.7,2011.6,40.8]
[1742733190610,0.99436,2011.7,2011.3,0.6806]
[1742733190611,7.0884,2011.7,2011.3,0.6806]
[1742733190823,0.99461,2011.2,2011.1,0.70435471]
[1742733191009,0.99459,2011.3,2011.1,2.37959471]
[1742733191209,0.99459,2011.3,2011.2,40.8]
[1742733192217,2.37559,2011.3,2011.2,42.1746]
[1742733193021,2.37559,2011.3,2011.2,1.3746]
[1742733193211,0.99461,2011.2,2011.1,0.00745471]
[1742733193412,3.00451,2011.2,2011.1,0.00745471]
[1742733194227,0.99444,2011.6,2011.4,0.99449]
[1742733194420,0.99443,2011.6,2011.4,0.99446]
[1742733194615,2.32063,2011.6,2011.5,1.9987]
[1742733194810,1.3262,2011.6,2011.5,3.68626]
[1742733195612,2.32061,2011.6,2011.5,3.68626]
[1742733195821,1.3262,2011.6,2011.5,2.6918]
[1742733196012,1.3262,2011.6,2011.5,3.68626]
[1742733196013,2.32061,2011.6,2011.5,3.68626]
[1742733196208,2.32061,2011.6,2011.5,2.6918]
[1742733196518,1.3262,2011.6,2011.5,2.6918]
[1742733196814,1.3262,2011.6,2011.5,3.68626]
[1742733197818,2.32061,2011.6,2011.5,2.6918]
[1742733198219,3.2078,2011.7,2011.5,2.6918]
[1742733198515,2.37333,2012.0,2011.6,1.2938]
[1742733198717,3.70693,2012.0,2011.8,0.99429]
[1742733198918,1.3336,2011.9,2011.8,0.99429]
[1742733199217,1.3336,2011.9,2011.8,41.79429]
[1742733201121,0.6957,2012.0,2011.9,0.99426]
[1742733201326,0.6957,2012.0,2011.9,1.69326]
[1742733201726,2.026,2012.0,2011.9,1.69326]
[1742733203223,3.02021,2012.0,2011.9,1.69326]
[1742733204318,3.02021,2012.0,2011.9,0.699]
[1742733206227,3.02021,2012.0,2011.9,1.69326]
[1742733207232,3.02021,2012.0,2011.9,0.699]
[1742733209439,3.02021,2012.0,2011.9,1.69326]
[1742733210137,3.02021,2012.0,2011.9,0.699]
[1742733210336,2.026,2012.0,2011.9,1.69326]
[1742733211029,2.32451,2012.0,2011.9,1.69326]
[1742733211337,1.3303,2012.0,2011.9,1.69326]
[1742733212044,3.2078,2012.1,2012.0,0.99421]
[1742733212637,1.33735471,2012.3,2012.2,0.99411]
[1742733212933,0.00745471,2012.3,2012.2,0.99411]
[1742733213160,0.00745471,2012.3,2012.2,2.39241]
[1742733215642,1.29645471,2012.3,2012.2,2.39241]
[1742733216538,2.29051471,2012.3,2012.2,2.39241]
[1742733216744,1.29645471,2012.3,2012.2,2.39241]
[1742733220441,0.00745471,2012.3,2012.2,2.39241]
[1742733222240,3.2078,2013.0,2012.5,2.4848]
[1742733222434,1.2829,2012.6,2012.5,0.99396]
[1742733225144,1.939,2012.6,2012.5,0.99396]
[1742733228638,1.939,2012.6,2012.5,4.17896]
[1742733230849,1.2829,2012.6,2012.5,4.17896]
[1742733231545,1.2829,2012.6,2012.5,7.38676]
[1742733233351,1.2829,2012.6,2012.5,8.72126]
[1742733234150,1.37505471,2012.8,2012.7,0.99386]
[1742733234350,3.2078,2013.0,2012.9,0.99377]
[1742733234742,0.6369,2013.0,2012.9,4.17777]
[1742733234942,0.6369,2013.0,2012.9,5.51227]
[1742733235346,0.6369,2013.0,2012.9,46.31227]
[1742733236457,0.6369,2013.0,2012.6,5.66871]
[1742733236458,1.63062,2013.0,2012.6,5.66871]
[1742733236658,1.63062,2013.0,2012.8,0.99377]
[1742733237353,0.99377,2012.9,2012.7,2.28803]
[1742733237563,7.0287,2013.0,2012.7,2.28803]
[1742733237857,0.99379,2012.9,2012.8,0.99381]
[1742733238855,0.99379,2012.9,2012.7,2.28803]
[1742733239250,8.02245,2013.0,2012.8,0.99381]
[1742733239560,1.3389,2012.9,2012.8,0.99381]
[1742733242164,3.8447,2013.0,2012.9,0.99377]
[1742733242371,6.19312,2013.0,2012.9,1.3902]
[1742733242772,0.99381,2012.8,2012.7,1.3902]
[1742733243268,0.99381,2012.8,2012.7,2.38406]
[1742733244070,1.3547,2012.9,2012.7,1.3902]
[1742733244372,1.3547,2012.9,2012.8,2.38401]
[1742733244674,2.34847,2012.9,2012.8,1.3902]
[1742733244876,0.99385,2012.8,2012.6,44.97789]
[1742733245071,2.37315,2012.8,2012.7,1.3765]
[1742733245980,1.3793,2012.8,2012.7,2.37036]
[1742733246180,2.37311,2012.8,2012.7,2.37036]
[1742733246468,2.37311,2012.8,2012.4,0.6377]
[1742733246677,0.99393,2012.6,2012.5,1.3765]
[1742733246976,5.58099,2012.7,2012.5,43.17043]
[1742733247176,1.3793,2012.6,2012.5,43.17043]
[1742733247377,1.3793,2012.6,2012.5,41.79393]
[1742733248169,1.3793,2012.6,2012.5,41.79396]
[1742733249869,2.37321,2012.6,2012.5,40.8]
[1742733251072,2.37321,2012.6,2012.4,0.99398]
[1742733251373,1.2817,2012.5,2012.4,0.99398]
[1742733251574,1.2817,2012.5,2012.4,41.79401]
[1742733252469,2.27566,2012.5,2012.4,40.8]
[1742733252979,0.99401,2012.4,2012.3,0.00745471]
[1742733253180,5.48351,2012.4,2012.3,0.00745471]
[1742733255679,4.4895,2012.4,2012.3,1.00151471]
[1742733255875,4.4895,2012.4,2012.3,1.63641471]
[1742733256266,5.48351,2012.4,2012.3,0.64235471]
[1742733259477,3.2078,2012.4,2012.3,1.63641471]
[1742733259974,3.2078,2012.4,2012.3,4.82041471]
[1742733260575,0.99387,2012.7,2012.6,0.99391]
[1742733260775,3.01527,2012.7,2012.6,0.99391]
[1742733261573,3.01526,2012.7,2012.6,0.99391]
[1742733261881,2.0214,2012.7,2012.6,0.99391]
[1742733262278,3.01528,2012.7,2012.5,0.99393]
[1742733262580,3.01528,2012.7,2012.3,8.02821471]
[1742733262581,2.0214,2012.7,2012.6,0.99391]
[1742733263487,2.0214,2012.7,2012.6,4.20171]
[1742733263689,3.184,2012.8,2012.7,0.99386]
[1742733263879,3.184,2012.8,2012.7,2.37926]
[1742733263880,5.44561,2012.8,2012.7,2.37926]
[1742733264187,5.44561,2012.8,2012.7,1.3854]
[1742733264386,5.44561,2012.8,2012.7,2.37926]
[1742733264687,5.44561,2012.8,2012.7,1.3854]
[1742733264885,4.4518,2012.8,2012.7,2.37926]
[1742733265075,5.44561,2012.8,2012.7,2.37926]
[1742733265985,5.44561,2012.8,2012.7,1.3854]
[1742733268889,4.4518,2012.8,2012.4,1.66138]
[1742733269079,0.99396,2012.6,2012.5,1.2969]
[1742733269581,2.29906,2012.6,2012.5,1.2969]
[1742733271094,0.99401,2012.4,2012.3,3.21525471]
[1742733271284,4.17801,2012.4,2012.3,3.21525471]
[1742733281088,0.99411,2012.2,2012.1,1.3255]
[1742733281293,4.17811,2012.2,2012.1,1.3255]
[1742733281727,6.20561,2012.2,2012.1,1.3255]
[1742733283292,3.02161,2012.2,2012.1,1.3255]
[1742733283497,6.20561,2012.2,2012.1,1.3255]
[1742733289498,3.184,2012.2,2012.1,1.3255]
[1742733289693,4.17811,2012.2,2012.1,1.3255]
[1742733291299,0.99411,2012.2,2012.1,2.31966]
[1742733291609,0.99406,2012.3,2012.2,0.9941]
[1742733291906,7.38585,2012.4,2012.2,2.9314]
[1742733292300,7.38585,2012.4,2012.3,1.2804]
[1742733292908,4.20185,2012.4,2012.3,1.2804]
[1742733293806,0.99405,2012.4,2012.3,1.2804]
[1742733296894,0.99405,2012.4,2012.3,2.27446]
[1742733297400,0.99405,2012.4,2012.3,1.2804]
[1742733298209,1.9489,2012.6,2012.3,1.2804]
[1742733298506,5.1329,2012.6,2012.3,1.2804]
[1742733298902,0.99398,2012.5,2012.3,2.27441]
[1742733299103,0.99398,2012.5,2012.4,1.3882]
[1742733301007,3.00898,2012.5,2012.4,1.3882]
[1742733301915,3.00898,2012.5,2012.0,4.17817]
[1742733301916,0.99418,2012.1,2011.9,0.00745471]
[1742733302112,0.99421,2012.0,2011.9,0.69195471]
[1742733303408,1.69171,2012.0,2011.9,0.69195471]
[1742733303814,3.05901,2012.0,2011.9,0.69195471]
[1742733304013,3.05901,2012.0,2011.9,0.00745471]
[1742733305309,3.91670087,2012.0,2011.9,0.00745471]
[1742733305511,6.41670087,2012.0,2011.9,0.00745471]
[1742733305814,7.35117195,2012.0,2011.9,0.00745471]
[1742733308007,4.85117195,2012.0,2011.9,0.00745471]
[1742733308713,6.41670087,2012.0,2011.9,0.00745471]
[1742733309012,0.99446,2011.5,2011.4,1.3314]
[1742733309212,4.17846,2011.5,2011.4,1.3314]
[1742733310023,5.57446,2011.5,2011.4,1.3314]
[1742733310213,0.99454,2011.4,2011.2,3.87765471]
[1742733310413,2.39054,2011.4,2011.3,1.3314]
[1742733317732,3.185,2011.7,2011.3,1.3314]
[1742733317938,0.99441,2011.6,2011.5,3.2078]
[1742733318731,0.99441,2011.6,2011.5,5.1355]
[1742733322335,0.99441,2011.6,2011.5,4.4807]
[1742733322530,1.68791,2011.6,2011.5,4.4807]
[1742733322726,6.27271,2011.6,2011.5,4.4807]
[1742733324641,6.27271,2011.6,2011.5,3.2078]
[1742733330844,0.99446,2011.5,2011.4,4.5787]
[1742733331046,2.27076,2011.5,2011.4,4.5787]
[1742733340843,2.27076,2011.5,2011.4,1.3709]
[1742733356854,3.2078,2011.7,2011.4,1.3709]
[1742733357061,4.20217,2011.7,2011.5,1.65132]
[1742733357258,5.06129939,2011.7,2011.6,1.363]
[1742733357554,4.20217,2011.7,2011.6,2.0623]
[1742733359258,4.4821,2011.8,2011.6,5.2701]
[1742733359454,4.17929,2011.9,2011.7,2.35735]
[1742733359659,5.47639,2011.9,2011.8,1.363]
[1742733362266,4.17929,2011.9,2011.8,1.363]
[1742733363065,4.17929,2011.9,2011.8,2.0578]
[1742733363765,3.185,2011.9,2011.8,3.05211]
[1742733363964,4.17926,2011.9,2011.8,2.0578]
[1742733365367,2.35333,2012.0,2011.8,2.0578]
[1742733365568,5.53733,2012.0,2011.9,1.2941]
[1742733365868,2.35333,2012.0,2011.9,1.9553]
[1742733366768,2.35333,2012.0,2011.9,5.1631]
[1742733366963,4.17793,2012.6,2012.3,0.99403]
[1742733367165,2.18356593,2012.8,2012.4,1.3161]
[1742733367371,2.18356593,2012.8,2012.6,3.2078]
[1742733367372,0.9339334,2012.8,2012.6,3.2078]
[1742733367555,0.9339334,2012.8,2012.7,5.51876]
[1742733367871,0.9339334,2012.8,2012.7,46.31876]
[1742733368066,1.3087,2013.2,2012.7,45.3249]
[1742733368268,1.3087,2013.2,2013.0,0.99371]
[1742733368562,0.00745471,2013.2,2013.1,2.657]
[1742733369857,0.00745471,2013.2,2013.1,3.65067]
[1742733370058,1.36475471,2013.2,2013.1,2.657]
[1742733370492,2.35837471,2013.2,2013.1,2.657]
[1742733370659,2.35837471,2013.2,2013.1,1.3409]
[1742733371970,0.99348,2013.5,2013.1,1.3409]
[1742733372170,0.9936,2013.3,2013.1,1.3409]
[1742733372476,1.2666,2013.2,2012.9,3.9069]
[1742733372666,0.99369,2013.1,2013.0,1.294]
[1742733372972,3.59475,2013.2,2013.0,2.2877]
[1742733373277,3.19145471,2013.3,2013.0,1.294]
[1742733373470,0.00745471,2013.3,2013.2,0.99362]
[1742733373769,0.00745471,2013.3,2013.2,1.62862]
[1742733374768,0.00745471,2013.3,2013.2,0.635]
[1742733374970,1.27405471,2013.3,2013.2,1.62862]
[1742733375172,0.00745471,2013.3,2013.2,1.62862]
[1742733376273,1.30645471,2013.3,2013.2,1.62862]
[1742733377673,0.00745471,2013.3,2013.2,1.62862]
[1742733377963,0.00745471,2013.3,2013.2,4.83642]
[1742733380372,5.48114,2013.8,2013.6,0.99341]
[1742733380561,4.4878,2013.8,2013.2,7.0248]
[1742733380767,0.99352,2013.4,2013.3,1.2877]
[1742733381194,3.8537,2013.6,2013.3,1.2877]
[1742733381363,0.99352,2013.4,2013.3,1.2877]
[1742733381568,2.97541,2013.5,2013.3,2.28127]
[1742733381769,1.3002,2013.4,2013.3,2.28127]
[1742733381964,0.67015471,2013.6,2013.3,1.2877]
[1742733382172,0.67015471,2013.6,2013.5,0.99347]
[1742733382376,1.30765471,2013.6,2013.5,0.99347]
[1742733382582,0.00745471,2013.6,2013.5,4.20127]
[1742733383677,0.00745471,2013.6,2013.5,5.49147]
[1742733384389,2.30107471,2013.6,2013.5,4.498]
[1742733384570,1.30765471,2013.6,2013.5,5.49147]
[1742733385076,0.00745471,2013.6,2013.5,5.49147]
[1742733386177,3.20145471,2013.6,2013.2,3.2078]
[1742733386476,3.2078,2013.5,2013.1,1.00111471]
[1742733386677,0.9936,2013.3,2013.1,2.34001471]
[1742733386978,0.9936,2013.3,2013.2,1.3389]
[1742733387272,4.2006,2013.3,2013.2,1.3389]
[1742733387873,4.2006,2013.3,2013.1,0.65115471]
[1742733387874,0.99362,2013.2,2013.1,0.65115471]
[1742733388364,0.99362,2013.2,2013.1,0.00745471]
[1742733388964,4.20142,2013.2,2013.1,0.00745471]
[1742733389372,5.54842,2013.2,2013.1,0.00745471]
[1742733393783,8.04842,2013.2,2013.1,0.00745471]
[1742733394076,8.04842,2013.2,2012.6,1.2781]
[1742733394077,0.99386,2012.7,2012.6,1.2781]
[1742733394281,0.99386,2012.7,2012.6,2.6131]
[1742733399087,6.4238,2012.8,2012.5,8.0]
[1742733399088,0.99391,2012.6,2012.5,8.0]
[1742733399472,0.99391,2012.6,2012.5,9.285]
[1742733401076,4.20491,2012.6,2012.5,9.285]
[1742733401476,4.20491,2012.6,2012.5,11.62436]
[1742733401477,3.211,2012.6,2012.5,11.62436]
[1742733401677,4.20491,2012.6,2012.5,10.6304]
[1742733405982,4.20491,2012.6,2012.5,9.9487]
[1742733406189,4.20491,2012.6,2012.5,8.0]
[1742733410289,4.20491,2012.6,2012.5,9.3479]
[1742733411998,0.99391,2012.6,2012.5,9.3479]
[1742733412297,4.19791,2012.6,2012.5,9.3479]
[1742733415795,4.19791,2012.6,2012.5,9.9916]
[1742733416194,3.204,2012.6,2012.5,9.9916]
[1742733418593,0.99391,2012.6,2012.5,9.9916]
[1742733418909,4.1949,2012.7,2012.5,9.9916]
[1742733419200,4.1949,2012.7,2012.6,1.9312]
[1742733419604,4.5654,2012.8,2012.6,1.9312]
[1742733419605,4.20164,2012.8,2012.6,1.9312]
[1742733419801,7.40264,2012.8,2012.7,1.2779]
[1742733419993,4.20164,2012.8,2012.7,1.2779]
[1742733423511,5.69187,2013.2,2012.7,4.4857]
[1742733423812,0.99378,2012.9,2012.8,2.0288]
[1742733424011,0.99378,2012.9,2012.8,3.02261]
[1742733424406,0.99374,2013.0,2012.8,3.02261]
[1742733424708,0.99374,2013.0,2012.9,1.3774]
[1742733424909,2.32474,2013.0,2012.9,1.3774]
[1742733425613,0.99348,2013.5,2013.3,0.99356]
[1742733425808,2.32447,2013.5,2013.4,2.7252]
[1742733426006,5.53227,2013.5,2013.4,2.7252]
[1742733426619,5.53227,2013.5,2013.1,4.20144]
[1742733426620,0.99358,2013.3,2013.1,4.20144]
[1742733426960,0.99358,2013.3,2012.7,0.99384]
[1742733426961,5.69208,2013.2,2012.7,0.99384]
[1742733427209,5.69208,2013.2,2012.8,2.6812]
[1742733427210,0.99378,2012.9,2012.8,2.6812]
[1742733427412,0.99377,2012.9,2012.8,2.6812]
[1742733427913,2.30837,2012.9,2012.8,2.6812]
[1742733429014,2.30837,2012.9,2012.8,2.0257]
[1742733429410,2.30837,2012.9,2012.8,1.361]
[1742733430408,0.99385,2012.8,2012.6,2.31408]
[1742733430616,0.99386,2012.7,2012.6,2.5981]
[1742733430812,0.99386,2012.7,2012.6,1.3202]
[1742733431006,2.26706,2012.7,2012.6,1.3202]
[1742733431313,2.26706,2012.7,2012.6,0.6647]
[1742733431510,2.91976,2012.7,2012.6,0.6647]
[1742733437018,0.99391,2012.6,2012.5,8.0]
[1742733437311,2.36041,2012.6,2012.5,8.0]
[1742733438936,5.56241,2012.6,2012.5,8.0]
[1742733443322,5.56241,2012.6,2012.5,9.2952]
[1742733453225,5.56241,2012.6,2012.5,8.0]
[1742733454231,5.56241,2012.6,2012.5,9.3927]
[1742733456739,6.4199841,2012.6,2012.5,9.3927]
[1742733457139,4.19591,2012.6,2012.5,9.3927]
[1742733466343,3.202,2012.6,2012.5,9.3927]
[1742733466547,4.19591,2012.6,2012.5,9.3927]
[1742733473954,5.57871,2012.6,2012.5,9.3927]
[1742733476354,0.99383,2012.8,2012.6,0.99391]
[1742733476551,4.17783,2012.8,2012.7,1.4004]
[1742733476855,5.03619333,2012.8,2012.7,1.4004]
[1742733477158,5.97162017,2012.8,2012.7,1.4004]
[1742733478667,5.97162017,2012.8,2012.7,2.0903]
[1742733480551,0.93542684,2012.8,2012.7,3.08416]
[1742733481056,2.29137,2012.9,2012.7,3.08416]
[1742733481257,2.29137,2012.9,2012.8,1.3381]
[1742733481758,1.2976,2012.9,2012.8,2.33191]
[1742733482455,2.29137,2012.9,2012.8,1.3381]
[1742733484365,1.2976,2012.9,2012.8,1.3381]
[1742733484659,2.29137,2012.9,2012.8,1.3381]
[1742733486260,3.7976,2012.9,2012.5,8.0]
[1742733486457,0.99391,2012.6,2012.5,8.0]
[1742733486658,4.19491,2012.6,2012.5,8.0]
[1742733486859,6.34269957,2012.6,2012.5,8.0]
[1742733487359,7.27745345,2012.6,2012.5,8.0]
[1742733490257,9.85583377,2012.6,2012.5,8.0]
[1742733490966,7.35583377,2012.6,2012.5,8.0]
[1742733494277,7.35583333,2012.6,2012.5,8.0]
[1742733495066,9.77745345,2012.6,2012.5,8.0]
[1742733495258,9.85583562,2012.6,2012.5,7.0205]
[1742733495459,9.85583562,2012.6,2012.5,4.31221]
[1742733495655,9.85583562,2012.6,2012.5,0.79658]
[1742733495869,9.85583562,2012.6,2012.5,1e-05]
[1742733496060,0.99396,2012.5,2012.4,4.71e-06]
[1742733496261,4.14268562,2012.5,2012.4,4.71e-06]
[1742733496460,6.64268562,2012.5,2012.4,4.71e-06]
[1742733496955,6.64269213,2012.5,2012.4,4.71e-06]
[1742733502372,6.64269748,2012.5,2012.4,4.71e-06]
[1742733502575,12.58669748,2012.5,2012.4,4.71e-06]
[1742733504474,15.78169748,2012.5,2012.4,4.71e-06]
[1742733506477,15.78169748,2012.5,2010.9,3.2078]
[1742733506478,0.99467,2011.1,2010.9,3.2078]
[1742733506782,0.99465,2011.1,2011.0,1.3615]
[1742733507882,0.99465,2011.1,2011.0,2.64]
[1742733512281,4.19565,2011.1,2011.0,2.64]
[1742733513185,4.19565,2011.1,2011.0,3.6347]
[1742733513788,4.19565,2011.1,2011.0,2.64]
[1742733515990,3.201,2011.1,2011.0,3.6347]
[1742733516186,0.00745471,2011.3,2011.0,2.64]
[1742733516382,11.27366656,2012.4,2011.2,3.2078]
[1742733516383,5.69082,2011.8,2011.2,3.2078]
[1742733516589,0.99443,2011.6,2011.4,0.99446]
[1742733516785,0.99443,2011.6,2011.5,1.3113]
[1742733517084,8.89862,2011.8,2011.5,2.30576]
[1742733517391,0.99445,2011.6,2011.5,1.3113]
[1742733517590,8.89862,2011.8,2011.2,3.2078]
[1742733517591,0.99449,2011.5,2011.4,0.9945]
[1742733517881,6.4128,2011.8,2011.3,2.48638]
[1742733518089,0.99436,2011.7,2011.4,0.99451]
[1742733518286,7.40714,2011.8,2011.7,0.99436]
[1742733520392,7.40714,2011.8,2011.6,0.99437]
[1742733520595,0.99436,2011.7,2011.5,1.62962]
[1742733520979,0.99436,2011.7,2011.6,0.6927]
[1742733522595,7.40713,2011.8,2011.6,1.68709]
[1742733523394,0.99436,2011.7,2011.6,0.6927]
[1742733523692,7.40715,2011.8,2011.6,0.6927]
[1742733523892,0.99436,2011.7,2011.6,0.6927]
[1742733527996,2.37626,2011.7,2011.6,0.6927]
[1742733528496,0.99436,2011.7,2011.6,0.6927]
[1742733528995,2.37626,2011.7,2011.6,0.6927]
[1742733530301,0.99441,2011.6,2011.5,0.6352]
[1742733530595,0.99446,2011.5,2011.4,0.6502]
[1742733530986,2.25906,2011.5,2011.4,0.6502]
[1742733533099,2.25906,2011.5,2011.4,2.009]
[1742733533523,2.91626,2011.5,2011.4,2.009]
[1742733534602,2.25906,2011.5,2011.4,2.009]
[1742733534799,0.99446,2011.5,2011.4,2.009]
[1742733536998,2.27526,2011.5,2011.4,2.009]
[1742733541211,0.99456,2011.3,2011.2,3.2078]
[1742733542609,2.37956,2011.3,2011.2,4.5741]
[1742733542913,2.37956,2011.3,2011.2,5.56871]
[1742733543504,4.18553,2011.4,2011.2,5.56871]
[1742733543806,4.18553,2011.4,2011.3,1.3039]
[1742733544111,4.18553,2011.4,2011.3,1.9886]
[1742733545615,5.46493,2011.4,2011.3,1.9886]
[1742733548414,5.46493,2011.4,2011.3,2.98316]
[1742733549118,5.46493,2011.4,2011.3,1.9886]
[1742733552417,5.46493,2011.4,2011.3,2.98316]
[1742733553411,5.46493,2011.4,2011.3,1.9886]
[1742733554015,5.46493,2011.4,2011.3,2.98316]
[1742733554822,5.46493,2011.4,2011.3,1.9886]
[1742733555029,3.186,2011.4,2011.3,2.98316]
[1742733555320,3.2078,2011.5,2011.4,0.99451]
[1742733555619,3.2078,2011.5,2011.4,3.07791]
[1742733555818,5.45642,2011.6,2011.5,0.99446]
[1742733556021,5.45642,2011.6,2011.5,2.39216]
[1742733557138,4.462,2011.6,2011.5,2.39216]
[1742733558021,5.45641,2011.6,2011.5,2.39216]
[1742733558323,5.45641,2011.6,2011.5,1.3977]
[1742733558724,2.27041,2011.6,2011.5,2.39216]
[1742733559026,5.45641,2011.6,2011.5,2.39216]
[1742733559320,6.3938,2011.8,2011.7,0.99436]
[1742733559524,3.2078,2011.8,2011.7,0.99436]
[1742733560022,4.5043,2011.8,2011.7,2.39546]
[1742733563029,3.2078,2011.8,2011.7,2.39546]
[1742733563819,0.00745471,2011.9,2011.8,0.99431]
[1742733564020,0.00745471,2011.9,2011.8,2.96091]
[1742733564526,0.00745471,2011.9,2011.8,6.16871]
[1742733564725,3.2078,2012.3,2012.2,0.99411]
[1742733565027,6.30357656,2012.4,2011.9,2.48564]
[1742733565028,7.57337656,2012.4,2012.3,0.99406]
[1742733565930,3.186,2012.5,2012.4,0.99401]
[1742733566225,0.00745471,2012.6,2012.4,0.99401]
[1742733566226,2.27118471,2012.6,2012.4,0.99401]
[1742733566426,1.00138471,2012.6,2012.5,1.321]
[1742733567932,0.00745471,2012.6,2012.5,1.321]
[1742733568329,0.00745471,2012.6,2012.5,2.31496]
[1742733570132,0.00745471,2012.6,2012.2,1.3308]
[1742733570331,0.00745471,2012.6,2012.4,0.99401]
[1742733570532,1.00137471,2012.6,2012.3,1.3407]
[1742733570732,0.00745471,2012.6,2012.4,0.99401]
[1742733570933,1.00136471,2012.6,2012.3,2.33473]
[1742733571128,4.20916471,2012.6,2012.3,2.33473]
[1742733572533,3.21525471,2012.6,2012.4,0.99401]
[1742733572731,3.21525471,2012.6,2012.4,2.33471]
[1742733572930,3.185,2012.5,2012.4,2.33471]
[1742733573532,3.185,2012.5,2012.3,0.99403]
[1742733573735,0.6732,2012.4,2012.2,2.98539]
[1742733573923,0.6732,2012.4,2012.3,1.3026]
[1742733575536,1.66721,2012.4,2012.3,1.3026]
[1742733576566,0.6732,2012.4,2012.1,4.20938471]
[1742733576732,0.99411,2012.2,2012.1,0.00745471]
[1742733582737,4.20191,2012.2,2012.1,0.00745471]
[1742733583138,5.49831,2012.2,2012.1,0.00745471]
[1742733592244,0.99421,2012.0,2011.9,1.4014]
[1742733592445,4.17921,2012.0,2011.9,1.4014]
[1742733592846,5.51041,2012.0,2011.9,1.4014]
[1742733595983,0.99431,2011.8,2011.7,0.00745471]
[1742733596154,4.17931,2011.8,2011.7,1.39235471]
[1742733596550,5.54871,2011.8,2011.7,1.39235471]
[1742733600464,6.20841,2011.8,2011.7,1.39235471]
[1742733607456,5.54871,2011.8,2011.7,1.39235471]
[1742733619071,6.48417028,2011.8,2011.7,1.39235471]
[1742733621975,5.54871,2011.8,2011.7,1.39235471]
[1742733623175,5.11516098,2011.8,2011.7,1.39235471]
[1742733623468,6.44016098,2011.8,2011.7,1.39235471]
[1742733623704,5.50431,2011.8,2011.7,1.39235471]
[1742733623862,5.50431,2011.8,2011.7,0.00745471]
[1742733624068,6.97186245,2011.8,2011.7,0.00745471]
[1742733624478,7.98656468,2011.8,2011.7,0.00745471]
[1742733624978,11.27159325,2011.8,2011.7,0.00745471]
[1742733625372,10.48656468,2011.8,2011.7,0.00745471]
[1742733625676,11.27142081,2011.8,2011.7,0.00745471]
[1742733626075,10.48656468,2011.8,2011.7,0.00745471]
[1742733626380,11.27142088,2011.8,2011.7,4.71e-06]
[1742733628470,11.19301038,2011.8,2011.7,4.71e-06]
[1742733628677,11.27143061,2011.8,2011.7,4.71e-06]
[1742733630279,11.27143106,2011.8,2011.7,4.71e-06]
[1742733630680,10.48657486,2011.8,2011.7,4.71e-06]
[1742733632381,10.48657307,2011.8,2011.7,4.71e-06]
[1742733635876,10.48657444,2011.8,2011.7,4.71e-06]
[1742733637767,7.98657444,2011.8,2011.7,4.71e-06]
[1742733638277,53.95357444,2011.8,2011.7,4.71e-06]
[1742733639480,53.95357403,2011.8,2011.7,4.71e-06]
[1742733644682,53.87515418,2011.8,2011.7,4.71e-06]
[1742733644885,53.95357286,2011.8,2011.7,4.71e-06]
[1742733645383,53.95357427,2011.8,2011.7,4.71e-06]
[1742733645883,50.08937427,2011.8,2011.7,4.71e-06]
[1742733646176,53.27437427,2011.8,2011.7,4.71e-06]
[1742733646578,53.27437427,2011.8,2011.7,1.39430471]
[1742733646783,53.27436807,2011.8,2011.7,1.39430471]
[1742733647584,53.27436807,2011.8,2011.7,4.71e-06]
[1742733650180,54.05826707,2011.8,2011.7,4.71e-06]
[1742733650382,56.55826707,2011.8,2011.7,4.71e-06]
[1742733651278,0.99441,2011.6,2011.5,1.3943]
[1742733651582,7.46562389,2011.6,2011.5,1.3943]
[1742733651816,9.03787534,2011.6,2011.5,1.3943]
[1742733651985,10.98437534,2011.6,2011.5,1.3943]
[1742733652284,11.92066707,2011.6,2011.5,1.3943]
[1742733652682,11.92068233,2011.6,2011.5,1.3943]
[1742733653984,11.92068123,2011.6,2011.5,1.3943]